bitfinex/quotes_ETHUSD_20260110
["timestamp","ask_amount","ask_price","bid_price","bid_amount"]
[1768033344019,4.831e-05,3090.7,3090.3,0.00184914]
[1768033348624,0.002,3090.4,3090.3,0.00184914]
[1768033355207,1e-08,3090.9,3090.3,0.00184914]
[1768033355208,1e-08,3090.9,3090.3,0.93487125]
[1768033355411,1e-08,3090.9,3090.5,0.93302211]
[1768033356900,1e-08,3090.9,3090.6,1.06247802]
[1768033358607,1e-08,3090.9,3090.7,0.93302211]
[1768033358810,1e-08,3090.9,3090.8,0.93302211]
[1768033360231,1e-08,3090.9,3090.7,0.12945004]
[1768033360529,1e-08,3090.9,3090.3,0.00184914]
[1768033363536,0.98756855,3090.9,3090.3,0.00184914]
[1768033369537,0.98756854,3090.8,3090.3,0.00184914]
[1768033370234,0.98756854,3090.7,3090.3,0.00184914]
[1768033371807,0.98756854,3090.7,3090.6,0.001]
[1768033372036,0.98756854,3090.7,3090.3,0.00184914]
[1768033380738,0.42256866,3090.8,3090.3,0.00184914]
[1768033380911,1.39367333,3090.8,3090.3,0.00184914]
[1768033381112,0.46290127,3090.7,3090.3,0.00184914]
[1768033381634,1.43400594,3090.7,3090.3,0.00184914]
[1768033382621,4.66953131,3090.7,3090.3,0.00184914]
[1768033382815,0.97110467,3090.6,3090.3,0.00184914]
[1768033385743,4.20673622,3090.6,3090.3,0.00184914]
[1768033385944,0.46696375,3090.5,3090.3,0.00184914]
[1768033386148,0.99625804,3090.4,3090.3,0.00184914]
[1768033386747,0.46696375,3090.5,3090.3,0.00184914]
[1768033386949,1.46322179,3090.5,3090.3,0.00184914]
[1768033387139,0.99625804,3090.4,3090.3,0.00184914]
[1768033387333,1.46614708,3090.4,3090.3,0.00184914]
[1768033387714,0.46988904,3090.4,3090.3,0.00184914]
[1768033390457,1.46614708,3090.4,3090.3,0.00184914]
[1768033391524,0.99625804,3090.3,3089.9,0.0028]
[1768033391855,0.4702037,3090.2,3089.9,0.0028]
[1768033394564,0.99625804,3090.3,3089.9,0.0028]
[1768033395359,4.23221044,3090.3,3089.9,0.0028]
[1768033395731,4.23221044,3090.3,3090.2,0.001]
[1768033396632,3.2359524,3090.3,3089.9,0.0028]
[1768033397234,3.70575982,3090.4,3089.9,0.0028]
[1768033397544,0.51689816,3090.3,3089.9,0.0028]
[1768033398932,3.75283829,3090.3,3089.9,0.0028]
[1768033404039,4.74909633,3090.3,3089.9,0.0028]
[1768033407784,4.74909633,3090.3,3090.2,0.001]
[1768033408079,0.001,3090.2,3089.9,0.0028]
[1768033408280,0.52289854,3090.2,3089.9,0.0028]
[1768033409401,3.75895335,3090.2,3089.9,0.0028]
[1768033409754,0.52289854,3090.2,3089.9,0.0028]
[1768033419595,0.52289854,3090.2,3089.9,0.0015873]
[1768033423677,3.75895464,3090.2,3089.9,0.0015873]
[1768033423980,0.52289854,3090.2,3089.9,0.0015873]
[1768033424492,0.4755127,3090.1,3089.9,0.0015873]
[1768033426775,0.001,3090.2,3089.9,0.0015873]
[1768033443926,0.003,3090.2,3089.9,0.0015873]
[1768033485670,0.99238916,3090.2,3089.9,0.0015873]
[1768033485965,0.99138916,3090.2,3089.6,0.00360696]
[1768033487864,0.98938916,3090.1,3089.6,0.00360696]
[1768033488067,0.98938916,3090.0,3089.6,0.00360696]
[1768033488562,0.98938916,3089.7,3089.3,0.0028]
[1768033492466,0.002,3089.9,3089.3,0.97182616]
[1768033493453,0.002,3089.9,3089.3,0.0028]
[1768033503562,0.002,3089.9,3089.3,0.99756227]
[1768033503864,0.77176652,3089.8,3089.3,0.99756227]
[1768033504189,0.001,3089.6,3089.3,0.99756227]
[1768033530925,0.001,3089.6,3089.3,0.0028]
[1768033563551,0.001,3089.6,3089.3,0.96507202]
[1768033565063,0.001,3089.6,3089.3,1.09458661]
[1768033565359,0.001,3089.6,3089.3,4.33154228]
[1768033565565,0.001,3089.6,3089.4,0.96227202]
[1768033565862,0.001,3089.6,3089.5,0.96227202]
[1768033567372,0.91953409,3089.9,3089.4,3.23686815]
[1768033568060,0.91953409,3089.9,3089.3,3.36924868]
[1768033568777,0.002,3089.9,3089.4,0.96227202]
[1768033572639,0.002,3089.9,3089.3,0.13231459]
[1768033573270,0.002,3089.9,3089.3,1.09458661]
[1768033573783,0.002,3089.9,3089.4,0.96227202]
[1768033573947,0.001,3089.6,3089.4,0.96227202]
[1768033574147,0.002,3089.9,3089.3,3.36927211]
[1768033574359,0.002,3089.9,3089.3,4.33154413]
[1768033578483,0.002,3089.9,3089.3,1.09458661]
[1768033580075,0.002,3089.9,3089.3,4.33154516]
[1768033581161,0.002,3089.9,3089.3,4.20203057]
[1768033581667,0.002,3089.9,3089.4,0.91953409]
[1768033585899,0.002,3089.9,3089.6,0.002]
[1768033597909,0.002,3089.9,3089.6,0.96707202]
[1768033606934,0.002,3089.9,3089.6,0.002]
[1768033607235,0.002,3089.9,3089.7,0.96707202]
[1768033610147,0.91546377,3089.9,3089.6,0.002]
[1768033610439,1.6544103,3089.9,3089.6,0.002]
[1768033612245,0.93434502,3089.8,3089.6,0.002]
[1768033614655,0.74094653,3089.9,3089.6,0.002]
[1768033623665,0.002,3089.9,3089.6,0.002]
[1768033635382,0.002,3089.9,3089.6,0.95733845]
[1768033636080,0.002,3089.9,3089.7,1.08483836]
[1768033636471,0.002,3089.9,3089.7,0.95533845]
[1768033636781,0.002,3089.9,3089.8,0.12949991]
[1768033658171,0.002,3089.9,3089.6,0.002]
[1768033658608,0.002,3089.9,3089.6,0.95733845]
[1768033658885,0.002,3089.9,3089.6,0.002]
[1768033690271,0.002,3089.9,3089.6,0.93314517]
[1768033690424,0.002,3089.9,3089.7,0.18904836]
[1768033691557,0.002,3089.9,3089.6,1.06264508]
[1768033698249,0.002,3089.9,3089.6,0.13149991]
[1768033718776,0.002,3089.9,3089.6,0.002]
[1768033720678,0.002,3089.9,3089.7,0.9496006]
[1768033747253,0.92849055,3089.9,3089.7,0.9496006]
[1768033747429,0.92849055,3089.9,3089.6,0.002]
[1768033748311,1.34512779,3089.9,3089.6,0.002]
[1768033748517,0.92649055,3089.8,3089.4,0.92849055]
[1768033748720,0.92649055,3089.7,3089.3,0.0028]
[1768033748916,1.36523102,3089.6,3089.3,0.0028]
[1768033749818,0.255,3089.5,3089.3,0.0028]
[1768033758819,0.002,3089.6,3089.3,0.91308052]
[1768033759114,0.002,3089.9,3089.4,0.91028052]
[1768033759689,3.238367,3089.9,3089.4,0.91028052]
[1768033759894,4.16485755,3089.9,3089.3,0.13231249]
[1768033760412,0.92849055,3089.9,3089.3,0.13231249]
[1768033762030,4.16487701,3089.9,3089.3,0.13231249]
[1768033762421,4.16487701,3089.9,3089.3,0.0028]
[1768033765047,0.92849055,3089.9,3089.3,0.0028]
[1768033765203,0.002,3089.9,3089.3,0.0028]
[1768033765636,0.002,3089.9,3089.3,0.91308052]
[1768033766136,0.002,3089.9,3089.6,0.002]
[1768033771540,1.68169034,3089.9,3089.6,0.002]
[1768033771723,0.92649055,3089.8,3089.3,0.0028]
[1768033772827,0.92649055,3089.6,3089.0,0.00360648]
[1768033773420,0.0008,3089.7,3089.0,0.99579244]
[1768033778526,0.0008,3089.7,3089.3,0.002]
[1768033778726,0.53634461,3089.7,3089.3,0.002]
[1768033778937,0.001,3089.6,3089.3,0.002]
[1768033779817,0.001,3089.6,3089.3,0.99418596]
[1768033791158,0.001,3089.4,3089.3,0.99418596]
[1768033791928,0.001,3089.4,3089.3,0.002]
[1768033801849,0.001,3089.4,3089.3,0.90754449]
[1768033802569,0.001,3089.4,3089.3,0.002]
[1768033807069,0.8718812,3090.0,3089.3,0.002]
[1768033807367,0.8718812,3090.0,3089.6,0.00160784]
[1768033815182,0.8718812,3090.0,3089.6,0.00360784]
[1768033815699,4.28230619,3090.2,3089.6,0.00360784]
[1768033816454,0.91474841,3090.1,3089.6,0.00360784]
[1768033818655,0.91474841,3090.0,3089.6,0.00360784]
[1768033818858,0.91474841,3089.6,3089.1,0.255]
[1768033819059,0.91474841,3089.6,3089.0,0.25860648]
[1768033824096,0.91474841,3089.6,3089.0,20.25860648]
[1768033826799,0.0008008,3089.7,3089.1,0.95081183]
[1768033826988,0.0008008,3089.7,3089.2,0.95081183]
[1768033827862,0.0008008,3089.7,3089.3,0.002]
[1768033831675,0.91554921,3089.7,3089.3,0.002]
[1768033838624,4.15211789,3089.7,3089.3,0.002]
[1768033838902,0.97315887,3089.6,3089.3,0.002]
[1768033839905,0.001,3089.4,3089.3,0.002]
[1768033890557,0.97206093,3089.4,3089.0,20.00360648]
[1768033890972,3.23697925,3089.3,3089.0,20.00360648]
[1768033891140,4.20804018,3089.3,3089.0,20.00360648]
[1768033892474,0.97106093,3089.2,3089.0,1e-08]
[1768033893182,4.2081752,3089.2,3089.0,1e-08]
[1768033894165,0.99330915,3089.1,3089.0,1e-08]
[1768033894367,0.74458437,3089.3,3089.0,1e-08]
[1768033894565,0.00260648,3089.4,3089.0,0.98997408]
[1768033895762,0.00260648,3089.4,3089.2,0.98997407]
[1768033907438,0.00260648,3089.4,3089.1,0.255]
[1768033916061,0.91406162,3089.4,3089.1,0.255]
[1768033921568,0.91145514,3089.3,3089.0,1e-08]
[1768033921723,0.91145514,3089.1,3089.0,1e-08]
[1768033921924,0.91145514,3089.1,3088.7,0.000808]
[1768033922325,0.91145514,3089.0,3088.7,0.000808]
[1768033926387,0.001,3089.1,3088.7,0.000808]
[1768033927394,0.42249531,3089.1,3088.7,0.000808]
[1768033928112,0.001,3089.1,3088.7,0.9601655]
[1768033928323,0.001,3089.1,3088.8,0.9593575]
[1768033929372,0.97951887,3089.4,3088.7,3.23839652]
[1768033930181,0.00260648,3089.4,3088.8,0.9593575]
[1768033931834,0.00260648,3089.4,3088.9,0.9593575]
[1768033932406,0.00260648,3089.4,3089.1,0.9593575]
[1768033935322,0.00260648,3089.4,3089.1,4.19653896]
[1768033940063,0.00260648,3089.4,3089.0,3.49425407]
[1768033940750,0.00260648,3089.4,3089.0,4.45361157]
[1768033941151,0.00260648,3089.4,3089.0,1.2163575]
[1768033943470,0.00260648,3089.4,3089.0,0.257]
[1768033947575,0.001,3089.1,3089.0,0.257]
[1768033948557,0.00260648,3089.4,3089.0,0.257]
[1768033958787,0.95442538,3089.4,3089.0,0.257]
[1768033959290,0.001,3089.1,3089.0,0.257]
[1768033959992,0.001,3089.1,3089.0,0.002]
[1768033970009,0.9528189,3089.1,3089.0,0.002]
[1768033970313,1.37180997,3089.1,3089.0,0.002]
[1768033970667,0.41999107,3089.1,3089.0,0.002]
[1768033979499,0.001,3089.1,3089.0,0.002]
[1768033981714,0.001,3089.1,3088.7,0.000808]
[1768033982013,0.9152363,3089.1,3088.7,0.000808]
[1768033984914,0.001,3089.1,3088.7,0.000808]
[1768033985425,0.001,3089.1,3088.7,0.97624381]
[1768033995743,0.001,3089.1,3089.0,0.002]
[1768034010157,0.001,3089.1,3089.0,0.97743581]
[1768034010325,0.001,3089.1,3089.0,0.002]
[1768034014630,0.9530321,3089.1,3088.6,0.002]
[1768034014973,0.00080712,3087.9,3087.2,0.94608428]
[1768034015133,0.95283922,3087.9,3087.2,0.94608428]
[1768034015539,0.95283922,3087.9,3087.2,0.00086791]
[1768034016044,0.94521637,3087.8,3087.2,0.00086791]
[1768034016245,1.13502193,3087.8,3087.2,0.00086791]
[1768034016437,2.08705403,3087.8,3087.2,0.00086791]
[1768034016968,5.32562059,3087.8,3087.2,0.00086791]
[1768034017436,4.38040422,3087.8,3087.2,0.00086791]
[1768034017763,0.94521637,3087.7,3087.2,0.00086791]
[1768034019268,1.47785003,3087.7,3087.5,0.002]
[1768034020858,0.53263366,3087.7,3087.2,0.00086791]
[1768034021937,0.53263366,3087.7,3087.2,0.94608428]
[1768034022133,0.18980556,3087.8,3087.2,0.94608428]
[1768034022467,0.00080712,3087.9,3087.2,0.94608428]
[1768034023573,3.23926341,3087.9,3087.2,0.94608428]
[1768034024073,0.00080712,3087.9,3087.2,0.94608428]
[1768034031885,0.001,3087.6,3087.2,0.94608428]
[1768034032861,0.001,3087.6,3087.2,0.00086791]
[1768034039486,0.001,3087.6,3087.2,0.98376421]
[1768034040359,0.001,3087.6,3087.2,0.00086791]
[1768034040559,0.001,3087.6,3087.2,0.98376421]
[1768034041879,0.0008,3088.1,3087.7,0.9828963]
[1768034042185,0.0008,3088.1,3087.5,0.2558072]
[1768034042386,0.0008,3088.1,3087.6,0.9828963]
[1768034044685,0.001,3087.8,3087.6,0.9828963]
[1768034044889,0.0008,3088.1,3087.7,0.95876309]
[1768034056783,0.001,3087.8,3087.7,0.95876309]
[1768034056982,0.0008,3088.1,3087.6,0.95876309]
[1768034059112,0.91497235,3088.1,3087.6,0.255]
[1768034067888,0.0008,3088.1,3087.6,1.21376309]
[1768034068217,0.0008,3088.1,3087.7,0.95876309]
[1768034068607,0.001,3087.8,3087.7,0.95876309]
[1768034068796,0.91417235,3088.2,3087.7,3.23943638]
[1768034070809,0.0008,3088.5,3087.7,4.19819947]
[1768034071008,0.0008,3088.5,3087.8,0.95876309]
[1768034077450,0.91435342,3088.5,3087.8,0.95876309]
[1768034077742,0.91435342,3088.5,3087.7,0.0008008]
[1768034077946,0.91435342,3088.5,3087.8,0.255]
[1768034078141,0.91355342,3088.4,3087.8,0.255]
[1768034080350,0.91355342,3088.4,3088.1,0.002]
[1768034080649,0.001,3088.2,3088.1,0.002]
[1768034102452,0.95159447,3088.2,3088.1,0.002]
[1768034103434,0.001,3088.2,3088.1,0.002]
[1768034104384,0.95820854,3088.2,3088.1,0.002]
[1768034104868,0.001,3088.2,3088.1,0.002]
[1768034171050,0.97367931,3088.2,3088.1,0.002]
[1768034171647,1.39484532,3088.2,3088.1,0.002]
[1768034173647,0.42216601,3088.2,3088.1,0.002]
[1768034175646,0.001,3088.2,3088.1,0.002]
[1768034177054,0.001,3088.2,3087.8,0.002]
[1768034186462,0.001,3088.2,3088.1,0.002]
[1768034186641,0.001,3088.2,3087.8,0.002]
[1768034198475,0.001,3088.2,3088.1,0.002]
[1768034198776,0.001,3088.2,3087.8,0.002]
[1768034199864,0.001,3088.2,3087.8,0.9987006]
[1768034200716,0.001,3088.2,3087.9,0.9967006]
[1768034209390,0.001,3088.2,3087.9,4.23513334]
[1768034209983,0.001,3088.2,3088.0,0.9967006]
[1768034210487,0.001,3088.2,3088.1,0.002]
[1768034225609,0.0008,3088.5,3088.1,0.97771494]
[1768034225903,0.98127951,3088.4,3088.1,0.002]
[1768034229814,0.0008,3088.5,3088.1,0.002]
[1768034230114,0.98207951,3088.5,3088.1,0.002]
[1768034230275,0.0008,3088.5,3088.1,0.002]
[1768034230753,0.98207951,3088.5,3088.1,0.002]
[1768034233715,0.001,3088.2,3088.1,0.002]
[1768034233909,0.0008,3088.5,3088.1,0.002]
[1768034239022,0.0008,3088.5,3088.1,0.97771494]
[1768034245527,0.001,3088.2,3088.1,0.97771494]
[1768034245765,0.98207951,3088.5,3088.1,0.002]
[1768034246448,0.0008,3088.5,3088.1,0.97771494]
[1768034257156,0.001,3088.2,3088.1,0.97771494]
[1768034257319,0.94446107,3088.5,3088.1,0.002]
[1768034257525,0.94446107,3088.5,3088.1,0.98865363]
[1768034257526,0.0008,3088.5,3088.1,0.98865363]
[1768034265961,0.0008,3088.5,3088.1,4.22688332]
[1768034266459,0.0008,3088.5,3088.1,0.98865363]
[1768034267735,0.0008,3088.5,3088.1,0.002]
[1768034269064,0.001,3088.2,3088.1,0.002]
[1768034269235,0.0008,3088.5,3088.1,0.002]
[1768034270470,0.91641404,3088.5,3088.1,0.002]
[1768034274802,0.0008,3088.5,3088.1,0.91640145]
[1768034280002,0.0008,3088.5,3088.1,4.15463071]
[1768034280834,0.001,3088.2,3088.1,4.15463071]
[1768034280958,0.0008,3088.5,3088.1,4.15463071]
[1768034281307,0.0008,3088.5,3088.1,0.91640145]
[1768034282895,0.0008,3088.5,3088.2,0.91440145]
[1768034283061,0.0008,3088.5,3088.3,0.91440145]
[1768034284391,0.92191845,3088.9,3088.1,6.47924188]
[1768034285194,0.92191845,3088.9,3088.1,3.24100478]
[1768034285394,0.92191845,3088.9,3088.1,6.47924188]
[1768034287613,0.0008,3088.9,3088.2,0.93318729]
[1768034289301,0.0008,3088.9,3088.4,0.93318729]
[1768034289503,0.0008,3088.9,3088.4,1.18818729]
[1768034292013,0.0008,3088.9,3088.4,4.42609774]
[1768034292415,0.0008,3088.9,3088.5,0.93318729]
[1768034295001,0.001,3088.6,3088.5,0.93318729]
[1768034295200,0.0008,3088.9,3088.5,3.23778415]
[1768034300330,0.0008,3088.9,3088.6,4.17084075]
[1768034301125,0.001808,3089.1,3088.7,0.93318729]
[1768034303026,0.001808,3089.1,3088.7,4.17078463]
[1768034305542,0.001808,3089.1,3088.7,0.93318729]
[1768034314283,0.001808,3089.1,3088.6,3.23767666]
[1768034319399,0.001808,3089.1,3088.7,3.23760802]
[1768034320500,0.001808,3089.1,3088.9,0.002]
[1768034325220,0.13354689,3089.0,3088.9,0.002]
[1768034327925,0.001808,3089.1,3088.9,0.002]
[1768034328918,0.001808,3089.1,3089.0,0.01872336]
[1768034329518,0.94118608,3089.1,3089.0,0.01872336]
[1768034344633,0.94118608,3089.1,3088.9,0.002]
[1768034363688,0.001808,3089.1,3088.9,0.002]
[1768034391738,0.001808,3089.1,3088.9,0.95731869]
[1768034392448,0.001808,3089.1,3088.9,0.002]
[1768034405324,1.38160192,3089.1,3088.5,0.0028008]
[1768034406214,2.35331062,3089.1,3088.5,0.0028008]
[1768034408572,1.39338788,3089.1,3088.5,0.90657346]
[1768034408759,0.9735167,3089.1,3088.5,0.90657346]
[1768034413080,0.001808,3089.1,3088.5,0.90657346]
[1768034415097,0.001808,3089.1,3088.8,0.002]
[1768034417574,0.96173074,3089.1,3088.8,0.002]
[1768034417787,0.51704775,3089.0,3088.8,0.002]
[1768034418403,1.47697049,3089.0,3088.8,0.002]
[1768034422900,1.47697049,3089.0,3088.5,0.0028008]
[1768034423104,0.95992274,3089.0,3088.5,0.0028008]
[1768034423402,1.93165662,3089.0,3088.5,0.0028008]
[1768034428111,1.93165662,3089.0,3088.8,0.002]
[1768034428466,1.93165662,3089.0,3088.5,0.0028008]
[1768034432785,0.97173388,3089.0,3088.5,0.0028008]
[1768034433418,1.48879249,3089.0,3088.5,0.0028008]
[1768034433812,0.51705861,3089.0,3088.5,0.0028008]
[1768034434699,0.90558066,3089.1,3088.5,0.98238918]
[1768034435019,0.001808,3089.1,3088.5,0.98238918]
[1768034439756,0.001808,3089.1,3088.8,0.002]
[1768034481780,0.97460357,3089.1,3088.8,0.002]
[1768034483816,4.21186373,3089.1,3088.8,0.002]
[1768034484005,0.42118637,3089.0,3088.8,0.002]
[1768034495764,3.65849299,3089.0,3088.8,0.002]
[1768034495953,0.42118637,3089.0,3088.8,0.002]
[1768034503578,0.001808,3089.1,3088.8,0.002]
[1768034503737,0.001808,3089.1,3088.8,0.92359217]
[1768034506681,0.001808,3089.1,3088.8,0.002]
[1768034512279,0.001808,3089.1,3088.8,0.00078332]
[1768034516669,0.95041191,3089.1,3088.8,0.00078332]
[1768034519600,3.23729362,3089.0,3088.8,0.00078332]
[1768034519760,3.97977352,3089.0,3088.8,0.00078332]
[1768034520499,0.001808,3089.1,3088.8,0.00078332]
[1768034521595,0.001808,3089.1,3088.8,0.90454329]
[1768034523106,0.001808,3089.1,3088.8,0.00078332]
[1768034528520,0.001808,3089.1,3088.8,0.92141553]
[1768034533786,0.001808,3089.1,3088.8,0.00078332]
[1768034534300,0.001808,3089.1,3088.8,0.92141553]
[1768034556621,0.001808,3089.1,3088.8,0.00078332]
[1768034556822,0.96958711,3089.0,3088.8,0.00078332]
[1768034557922,0.001808,3089.1,3088.8,0.00078332]
[1768034559658,0.001808,3089.1,3088.8,0.99602499]
[1768034583094,0.001808,3089.1,3088.8,0.00078332]
[1768034644295,0.99272915,3089.1,3088.8,0.00078332]
[1768034653942,0.001808,3089.1,3088.8,0.00078332]
[1768034720381,0.001808,3089.1,3088.8,0.90850625]
[1768034728825,0.00260648,3089.4,3089.1,0.99293784]
[1768034729001,1.20802864,3089.7,3089.2,0.99293784]
[1768034729002,0.95302864,3089.7,3089.2,0.99293784]
[1768034729503,0.0008008,3089.7,3089.2,1.96435077]
[1768034729665,0.0008008,3089.7,3089.2,0.99293784]
[1768034730078,0.0008008,3089.7,3089.3,0.97141293]
[1768034740223,0.002,3089.4,3089.3,0.97141293]
[1768034741432,0.98830303,3089.6,3089.3,0.97141293]
[1768034746838,0.0028008,3089.7,3089.3,0.97141293]
[1768034748747,0.0028008,3089.7,3089.1,1.20116946]
[1768034749237,0.0028008,3089.7,3089.1,2.17258239]
[1768034752525,0.0028008,3089.7,3089.4,0.001]
[1768034800021,0.0028008,3089.7,3089.4,0.94653456]
[1768034805817,0.0028008,3089.7,3089.4,0.001]
[1768034821634,0.97242497,3089.7,3089.4,0.001]
[1768034821957,0.96962417,3089.5,3089.0,0.00160736]
[1768034822151,0.42088939,3089.6,3089.0,0.98329378]
[1768034823214,3.65761638,3089.6,3089.0,0.98329378]
[1768034824740,0.002,3089.4,3089.0,0.98329378]
[1768034837122,0.002,3089.4,3089.3,0.002]
[1768034837523,0.36795655,3089.4,3089.3,0.002]
[1768034840519,4.55237364,3089.4,3089.0,0.00360736]
[1768034840719,0.94750194,3089.3,3089.0,0.00360736]
[1768034845461,3.6048717,3089.4,3089.0,0.00360736]
[1768034845636,0.45523736,3089.3,3089.0,0.00360736]
[1768034875173,3.69223516,3089.3,3089.0,0.00360736]
[1768034875608,0.94503542,3089.2,3088.8,0.00078332]
[1768034877707,3.23718882,3089.1,3088.8,0.00078332]
[1768034878010,0.41822242,3089.0,3088.8,0.00078332]
[1768034890524,3.23718882,3089.1,3088.8,0.00078332]
[1768034895850,4.18215085,3089.2,3088.8,0.00078332]
[1768034896219,3.23711543,3089.2,3088.8,0.00078332]
[1768034904576,7.45018585,3089.4,3088.8,0.00078332]
[1768034904754,0.74501859,3089.3,3088.8,0.00078332]
[1768034908478,3.23708403,3089.2,3088.8,0.00078332]
[1768034910793,0.001,3089.0,3088.8,0.00078332]
[1768034978454,0.96399849,3089.0,3088.8,0.00078332]
[1768034978658,0.001,3089.0,3088.8,0.00078332]
[1768034987227,0.32481044,3089.0,3088.8,0.00078332]
[1768034988139,0.001,3089.0,3088.8,0.00078332]
[1768035000563,0.001,3089.0,3088.8,0.99118027]
[1768035000790,0.00360736,3089.4,3089.0,0.99039695]
[1768035002284,0.00360736,3089.4,3088.8,1.24618027]
[1768035004581,0.001,3089.1,3088.8,1.24618027]
[1768035006183,0.001,3089.1,3088.9,0.92693318]
[1768035007285,0.001,3089.1,3088.9,1.18193318]
[1768035035993,0.001,3089.1,3088.8,0.25578332]
[1768035053138,0.001,3089.1,3088.8,0.00078332]
[1768035053346,0.001,3089.1,3088.8,0.25578332]
[1768035054527,0.001,3089.1,3088.8,0.00078332]
[1768035054729,0.001,3089.1,3088.8,0.25578332]
[1768035061065,0.001,3089.1,3088.8,0.00078332]
[1768035090974,0.001,3089.1,3088.8,0.91811499]
[1768035098821,0.001,3089.1,3088.8,0.00078332]
[1768035120834,0.98779612,3089.0,3088.8,0.00078332]
[1768035124720,0.001,3089.1,3088.8,0.00078332]
[1768035137453,0.98621052,3089.1,3088.8,0.00078332]
[1768035141066,0.98521052,3089.3,3088.8,0.00078332]
[1768035141232,0.00360736,3089.4,3088.8,0.00078332]
[1768035141544,3.239437,3089.7,3088.8,0.00078332]
[1768035141545,0.0028008,3089.7,3088.8,0.00078332]
[1768035141750,0.97063202,3089.6,3089.0,0.00160824]
[1768035143449,0.97063202,3089.5,3089.0,0.00160824]
[1768035144564,0.97063202,3089.5,3089.1,0.002]
[1768035146755,0.0028008,3089.7,3089.1,0.002]
[1768035148959,3.23936098,3089.7,3089.1,0.002]
[1768035156480,0.001,3089.4,3089.1,0.002]
[1768035156982,0.0028008,3089.7,3089.4,0.90666896]
[1768035157285,0.0028008,3089.7,3089.2,0.90666896]
[1768035168319,0.0028008,3089.7,3089.4,0.002]
[1768035236959,0.0028008,3089.7,3089.4,0.90243854]
[1768035241046,0.0028008,3089.7,3089.4,0.002]
[1768035246869,0.0028008,3089.7,3089.4,0.98179687]
[1768035248674,0.0028008,3089.7,3089.4,0.002]
[1768035248879,0.95928043,3089.7,3089.4,0.002]
[1768035251970,0.0028008,3089.7,3089.4,0.002]
[1768035278714,0.93953031,3089.7,3089.4,0.002]
[1768035283941,0.0028008,3089.7,3089.4,0.002]
[1768035328392,0.0028008,3089.7,3089.4,0.90620283]
[1768035338633,0.0028008,3089.7,3089.4,0.002]
[1768035338931,0.0028008,3089.7,3089.4,0.92677255]
[1768035352547,0.00160784,3090.0,3089.7,0.98376458]
[1768035359947,0.00160784,3090.0,3089.7,0.98476458]
[1768035360547,0.00360784,3090.0,3089.7,0.98476458]
[1768035368767,0.97704066,3090.0,3089.7,0.001]
[1768035368929,0.00360784,3090.0,3089.7,0.92414005]
[1768035405577,0.91069093,3090.0,3089.7,0.001]
[1768035406107,0.00360784,3090.0,3089.7,0.001]
[1768035406314,0.00360784,3090.0,3089.7,1.00040543]
[1768035411713,0.00360784,3090.0,3089.7,0.001]
[1768035423722,0.97343282,3089.9,3089.7,0.001]
[1768035428725,0.00360784,3090.0,3089.7,0.001]
[1768035444902,0.00360784,3090.0,3089.7,0.93575735]
[1768035453727,0.00360784,3090.0,3089.7,0.001]
[1768035456330,0.00360784,3090.0,3089.8,0.98946903]
[1768035462437,0.00360784,3090.0,3089.7,0.001]
[1768035467647,0.00360784,3090.0,3089.7,0.99046903]
[1768035470774,0.00360784,3090.0,3089.7,0.001]
[1768035473569,0.002,3090.2,3089.7,0.001]
[1768035473948,0.002,3090.2,3089.7,0.256]
[1768035474462,0.002,3090.2,3089.7,1.22683623]
[1768035474646,0.002,3090.2,3089.8,0.97083623]
[1768035477265,3.23639475,3090.7,3090.0,0.97083623]
[1768035477484,4.62446243,3090.7,3090.0,0.97083623]
[1768035477668,5.59569296,3090.7,3090.0,0.97083623]
[1768035479852,0.002,3090.4,3090.0,0.97083623]
[1768035486375,0.97543282,3090.4,3089.9,0.0008008]
[1768035488793,0.97343282,3090.3,3089.9,0.0008008]
[1768035491494,0.002,3090.4,3089.9,0.0008008]
[1768035491872,0.002,3090.4,3089.9,0.92416759]
[1768035492186,0.002,3090.4,3090.2,0.001]
[1768035504071,0.002,3090.4,3090.3,0.001]
[1768035556136,0.002,3090.4,3090.3,0.9851188]
[1768035556830,0.002,3090.4,3090.3,0.001]
[1768035564420,0.002,3090.4,3090.3,0.9851188]
[1768035564819,0.002,3090.4,3090.3,0.001]
[1768035565952,0.002,3090.4,3090.3,0.9851188]
[1768035579868,0.002,3090.4,3090.3,0.001]
[1768035607132,0.002,3090.4,3090.2,0.001]
[1768035651706,0.95162202,3090.4,3090.2,0.001]
[1768035666307,0.002,3090.4,3090.2,0.001]
[1768035674754,0.002,3090.4,3090.2,0.94626428]
[1768035675128,0.002,3090.4,3090.3,0.94526428]
[1768035677347,0.002,3090.4,3090.3,1.13441714]
[1768035678556,0.002,3090.4,3090.3,1.26390322]
[1768035678771,0.00284914,3090.7,3090.4,0.94526428]
[1768035680459,0.00284914,3090.7,3090.3,0.31863894]
[1768035680668,0.00284914,3090.7,3090.3,1.26390322]
[1768035681282,0.00284914,3090.7,3090.4,0.94526428]
[1768035681576,0.002806,3091.0,3090.5,4.40495445]
[1768035681781,0.002806,3091.0,3090.5,4.53442796]
[1768035682074,0.002806,3091.0,3090.5,1.07473779]
[1768035683142,0.002806,3091.0,3090.5,0.94526428]
[1768035683542,0.002806,3091.0,3090.7,0.94526428]
[1768035686968,0.002806,3091.0,3090.5,1.07753779]
[1768035691404,0.002806,3091.0,3090.7,0.001]
[1768035698764,0.91875477,3091.0,3090.7,0.001]
[1768035699394,0.002806,3091.0,3090.7,0.001]
[1768035699702,0.002,3091.2,3090.7,0.001]
[1768035699891,0.002,3091.2,3090.7,0.99597387]
[1768035700085,0.002,3091.2,3090.8,0.19677841]
[1768035700465,0.002,3091.5,3090.8,3.65646858]
[1768035700704,0.002,3091.9,3091.2,0.99497387]
[1768035701688,0.002,3091.9,3091.4,0.99497387]
[1768035702103,0.91794877,3091.9,3091.2,0.99497387]
[1768035702475,0.91794877,3091.9,3091.5,0.12943371]
[1768035705312,0.91874877,3091.8,3091.0,0.99497387]
[1768035705486,0.91874877,3091.8,3091.0,0.254]